[Event "3rd BSSZ-Aranytiz IM 2019"]
[Site "Budapest"]
[Date "2019.08.18"]
[Round "3.5"]
[White "Martic, Zlatko"]
[Black "Nemeth, Zoltan"]
[Result "1-0"]
[ECO "C97"]
[WhiteElo "2284"]
[BlackElo "2275"]
[Annotator "NA"]
[PlyCount "83"]
[EventDate "2019.08.16"]
[EventType "tourn"]
[EventCountry "HUN"]
[SourceTitle "playchess.com"]
[Source "ChessBase"]
[SourceQuality "1"]
[TimeControl "40/5400+30:1800+30"]

1. e4 {[%emt 0:00:05]} e5 {[%emt 0:00:20]} 2. Nf3 {[%emt 0:00:18]} Nc6 {[%emt 0:00:05]} 3. Bb5 {[%emt 0:00:11]} a6 {[%emt 0:00:37]} 4. Ba4 {[%emt 0:00:14]} Nf6 {[%emt 0:03:40]} 5. O-O {[%emt 0:00:15]} b5 {[%emt 0:01:05]} 6. Bb3 {[%emt 0:00:07]} Be7 {[%emt 0:00:09]} 7. Re1 {[%emt 0:00:20]} O-O {[%emt 0:01:10]} 8. h3 {[%emt 0:01:55]} d6 {[%emt 0:03:32]} 9. c3 {[%emt 0:00:13]} Na5 {[%emt 0:00:09]} 10. Bc2 {[%emt 0:00:09]} c5 {[%emt 0:00:05]} 11. d4 {[%emt 0:00:28]} Qc7 {[%emt 0:00:05]} 12. d5 {[%emt 0:01:29]} c4 {[%emt 0:07:32]} 13. Nbd2 {[%emt 0:00:24]} h6 {[%emt 0:01:24] C97: Closed Ruy Lopez: Chigorin Defence: 11 d4 Qc7, sidelines} (13... Nb7 14. Nf1 Nc5 15. Kh1 Bd7 16. Ng3 Ne8 17. Nh2 Bh4 18. Rf1 Qd8 19. Nf3 Bxg3 20. fxg3 f5 21. Ng5 h6 22. Ne6 Bxe6 23. dxe6 fxe4 24. Rxf8+ Kxf8 {½-½ (61) Naiditsch,A (2689)-Svidler,P (2754) Khanty-Mansiysk 2009}) 14. Nf1 {[%emt 0:00:23]} Nh7 $146 {[%emt 0:00:37]} ({Predecessor:} 14... Nb7 15. Bd2 Nc5 16. b4 cxb3 17. axb3 a5 18. b4 Nb7 19. bxa5 Rxa5 20. Ng3 {0-1 (33) Kolb,V (1674)-Manco,M (1773) Willingen 2017}) 15. Ng3 {[%emt 0:00:18]} Qd8 {[%emt 0:00:07]} 16. b4 {[%emt 0:00:58]} cxb3 {[%emt 0:02:46]} 17. axb3 {[%emt 0:00:03]} Nb7 {[%emt 0:00:08]} 18. Bd3 {[%emt 0:05:37]} Bd7 {[%emt 0:00:30]} 19. Be3 {[%emt 0:00:16]} Bh4 {[%emt 0:00:50]} 20. Ra2 {[%emt 0:05:01]} Bxg3 {[%emt 0:01:33]} 21. fxg3 {[%emt 0:02:26]} Qc8 {[%emt 0:10:16]} 22. Qd2 {[%emt 0:30:00]} Nc5 {[%emt 0:00:46]} 23. Bc2 {[%emt 0:03:34]} f5 $14 {[%emt 0:00:31]} 24. exf5 {[%emt 0:01:28]} Bxf5 {[%emt 0:00:06]} 25. Bxf5 {[%emt 0:13:08]} Rxf5 {[%emt 0:00:07]} 26. g4 {[%emt 0:01:22]} Rf7 {[%emt 0:03:56]} 27. Qc2 {[%emt 0:06:06]} e4 {[%emt 0:06:15]} 28. Nd4 {[%emt 0:03:08]} Nd3 {[%emt 0:01:13]} 29. Rea1 {[%emt 0:10:26]} Rb7 {[%emt 0:27:26]} 30. Nf5 {[%emt 0:04:47]} Rd7 {[%emt 0:00:55]} 31. Bd4 {[%emt 0:00:53]} Qb7 {[%emt 0:01:28]} 32. Qe2 {[%emt 0:01:01]} Qxd5 {[%emt 0:02:19]} 33. Rxa6 {[%emt 0:00:14]} Rxa6 {[%emt 0:05:33]} 34. Rxa6 {[%emt 0:00:03]} Nf4 {[%emt 0:13:03]} 35. Qe3 {[%emt 0:00:40]} Ng6 {[%emt 0:00:04]} 36. h4 {[%emt 0:00:53]} Qxb3 {[%emt 0:03:09]} 37. Ra8+ {[%emt 0:01:27]} Nhf8 {[%emt 0:00:23]} 38. Qxe4 {[%emt 0:00:30]} Ne5 {[%emt 0:00:40]} 39. Bxe5 {[%emt 0:01:16]} dxe5 {[%emt 0:01:24]} 40. Qxe5 {[%emt 0:00:00]} Qd1+ {[%emt 0:00:00]} 41. Kh2 {[%emt 0:00:20]} Rf7 {[%emt 0:03:29]} 42. Rxf8+ {[%emt 0:00:25] Qd4} 1-0

[Event "3rd BSSZ-Aranytiz IM 2019"]
[Site "Budapest"]
[Date "2019.08.19"]
[Round "4.1"]
[White "Juhasz, Barbara"]
[Black "Nemeth, Zoltan"]
[Result "1-0"]
[ECO "B12"]
[WhiteElo "2157"]
[BlackElo "2275"]
[Annotator "NA"]
[PlyCount "47"]
[EventDate "2019.08.16"]
[EventType "tourn"]
[EventCountry "HUN"]
[SourceTitle "playchess.com"]
[Source "ChessBase"]
[SourceQuality "1"]
[TimeControl "40/5400+30:1800+30"]

1. e4 {[%emt 0:00:07]} c6 {[%emt 0:02:17]} 2. d4 {[%emt 0:00:09]} d5 {[%emt 0:00:06]} 3. Nd2 {[%emt 0:00:07]} g6 {[%emt 0:01:05]} 4. Ngf3 {[%emt 0:00:06]} Bg7 {[%emt 0:00:41]} 5. c3 {[%emt 0:00:09]} Nh6 {[%emt 0:01:07]} 6. Bd3 {[%emt 0:00:10]} O-O {[%emt 0:01:04]} 7. O-O {[%emt 0:00:11]} f6 {[%emt 0:01:24]} 8. Re1 {[%emt 0:00:05]} Nf7 {[%emt 0:02:24]} 9. h4 {[%emt 0:00:18]} e5 {[%emt 0:07:00]} 10. h5 {[%emt 0:01:25]} dxe4 {[%emt 0:06:14]} 11. hxg6 {[%emt 0:03:33]} hxg6 {[%emt 0:03:01]} 12. Nxe4 {[%emt 0:02:44]} Bg4 {[%emt 0:06:03]} 13. Bc4 {[%emt 0:17:29]} exd4 {[%emt 0:11:20]} 14. Bf4 {[%emt 0:11:09]} b5 {[%emt 0:05:04]} 15. Bxf7+ {[%emt 0:02:25]} Rxf7 {[%emt 0:03:14]} 16. Nd6 {[%emt 0:03:21]} Rf8 {[%emt 0:01:08]} 17. Qb3+ {[%emt 0:04:02]} Kh7 {[%emt 0:00:09]} 18. Nxd4 {[%emt 0:01:27]} a6 {[%emt 0:13:19]} 19. f3 {[%emt 0:17:07]} Bd7 {[%emt 0:00:23]} 20. Kf2 {[%emt 0:02:31]} g5 {[%emt 0:02:56]} 21. g4 {[%emt 0:15:53]} f5 {[%emt 0:03:12]} 22. Rh1+ {[%emt 0:01:10]} Kg6 {[%emt 0:01:17]} 23. Ne6 {[%emt 0:07:09]} Qe7 {[%emt 0:13:37]} 24. Rae1 {[%emt 0:00:04]} 1-0

[Event "3rd BSSZ-Aranytiz IM 2019"]
[Site "Budapest"]
[Date "2019.08.19"]
[Round "4.2"]
[White "Maerevoet, Sim"]
[Black "Martic, Zlatko"]
[Result "1-0"]
[ECO "E11"]
[WhiteElo "2321"]
[BlackElo "2284"]
[Annotator "NA"]
[PlyCount "79"]
[EventDate "2019.08.16"]
[EventType "tourn"]
[EventCountry "HUN"]
[SourceTitle "playchess.com"]
[Source "ChessBase"]
[SourceQuality "1"]
[TimeControl "40/5400+30:1800+30"]

1. d4 {[%emt 0:00:03]} Nf6 {[%emt 0:00:25]} 2. c4 {[%emt 0:00:09]} e6 {[%emt 0:00:10]} 3. Nf3 {[%emt 0:00:14]} Bb4+ {[%emt 0:00:19]} 4. Nbd2 {[%emt 0:01:09]} O-O {[%emt 0:01:27]} 5. g3 {[%emt 0:01:32]} b6 {[%emt 0:04:19]} 6. Bg2 {[%emt 0:00:09]} Bb7 {[%emt 0:00:08]} 7. O-O {[%emt 0:00:15]} a5 {[%emt 0:00:26]} 8. Qa4 {[%emt 0:10:19]} Re8 {[%emt 0:05:18]} 9. a3 {[%emt 0:06:57]} Bxd2 {[%emt 0:01:57]} 10. Bxd2 {[%emt 0:00:12]} d6 {[%emt 0:00:06]} 11. Rad1 {[%emt 0:11:06]} Nbd7 {[%emt 0:00:27]} 12. Rfe1 {[%emt 0:01:29]} h6 {[%emt 0:02:22]} 13. Nh4 {[%emt 0:06:13]} Bxg2 {[%emt 0:01:14]} 14. Kxg2 {[%emt 0:00:36]} e5 {[%emt 0:00:43]} 15. d5 {[%emt 0:10:50]} Nc5 {[%emt 0:00:26]} 16. Qc2 {[%emt 0:00:09]} a4 {[%emt 0:00:15]} 17. e4 {[%emt 0:02:13]} Qd7 {[%emt 0:02:21]} 18. f3 {[%emt 0:01:39]} Nb3 {[%emt 0:06:44]} 19. Be3 {[%emt 0:01:01]} Kh7 {[%emt 0:10:23]} 20. Nf5 {[%emt 0:01:10]} Ng8 {[%emt 0:00:14]} 21. g4 {[%emt 0:01:45]} g6 {[%emt 0:00:28]} 22. Ng3 {[%emt 0:00:08]} Ne7 {[%emt 0:01:44]} 23. h3 {[%emt 0:06:23]} f6 {[%emt 0:05:37]} 24. f4 {[%emt 0:02:36]} Rf8 {[%emt 0:06:20]} 25. f5 {[%emt 0:01:41]} g5 {[%emt 0:01:25]} 26. Rh1 {[%emt 0:01:06]} Kg7 {[%emt 0:00:27]} 27. h4 Rh8 {[%emt 0:04:13]} 28. Rh3 {[%emt 0:01:44]} Rag8 {[%emt 0:03:52]} 29. Rdh1 {[%emt 0:00:45]} Qc8 {[%emt 0:00:25]} 30. Qf2 {[%emt 0:07:53]} Qf8 {[%emt 0:12:11]} 31. Kf1 {[%emt 0:07:53]} Kf7 {[%emt 0:08:48]} 32. Qh2 {[%emt 0:00:51]} gxh4 {[%emt 0:06:00]} 33. Rxh4 {[%emt 0:00:05]} Qa8 {[%emt 0:09:19]} 34. Rxh6 {[%emt 0:00:41]} Rxh6 {[%emt 0:00:07]} 35. Qxh6 {[%emt 0:00:06]} Ke8 {[%emt 0:00:00]} 36. Nh5 {[%emt 0:01:48]} Qa6 {[%emt 0:01:52]} 37. Nxf6+ {[%emt 0:00:13]} Kf7 {[%emt 0:00:35]} 38. Nxg8 {[%emt 0:00:21]} Qxc4+ {[%emt 0:00:06]} 39. Kg1 {[%emt 0:00:45]} Nxg8 {[%emt 0:00:14]} 40. Qe6+ {[%emt 0:00:00]} 1-0

[Event "3rd BSSZ-Aranytiz IM 2019"]
[Site "Budapest"]
[Date "2019.08.19"]
[Round "4.3"]
[White "Luong, Phuong Hanh"]
[Black "Havanecz, Bianka"]
[Result "1/2-1/2"]
[ECO "D20"]
[WhiteElo "2313"]
[BlackElo "2281"]
[Annotator "NA"]
[PlyCount "148"]
[EventDate "2019.08.16"]
[EventType "tourn"]
[EventCountry "HUN"]
[SourceTitle "playchess.com"]
[Source "ChessBase"]
[SourceQuality "1"]
[TimeControl "40/5400+30:1800+30"]

1. d4 {[%emt 0:00:02]} d5 {[%emt 0:00:04]} 2. c4 {[%emt 0:00:06]} dxc4 {[%emt 0:00:05]} 3. e3 {[%emt 0:00:07]} e5 {[%emt 0:00:05]} 4. Bxc4 {[%emt 0:00:25]} exd4 {[%emt 0:00:05]} 5. Nf3 {[%emt 0:01:30]} Bb4+ {[%emt 0:00:05]} 6. Bd2 {[%emt 0:00:08]} Bxd2+ {[%emt 0:00:05]} 7. Qxd2 {[%emt 0:00:15]} dxe3 {[%emt 0:00:27]} 8. Bxf7+ {[%emt 0:01:03]} Ke7 {[%emt 0:00:03]} 9. Qxd8+ {[%emt 0:01:35]} Kxd8 {[%emt 0:00:05]} 10. fxe3 {[%emt 0:00:20]} Nh6 {[%emt 0:00:08]} 11. Bb3 {[%emt 0:01:14]} Re8 {[%emt 0:00:12]} 12. O-O {[%emt 0:00:53]} c6 {[%emt 0:00:35]} 13. Nc3 {[%emt 0:00:51]} Na6 {[%emt 0:03:04]} 14. e4 {[%emt 0:02:51]} Nc5 {[%emt 0:01:32]} 15. Bc2 {[%emt 0:00:37]} Be6 {[%emt 0:05:23]} 16. b4 {[%emt 0:01:59]} Nd7 {[%emt 0:00:28]} 17. Nd4 {[%emt 0:03:33]} Bc4 {[%emt 0:01:23]} 18. Rfd1 {[%emt 0:01:05]} g6 {[%emt 0:04:18]} 19. Bb3 {[%emt 0:05:37]} Bxb3 {[%emt 0:02:19]} 20. Nxb3 {[%emt 0:00:16]} Kc8 {[%emt 0:10:39]} 21. Rac1 {[%emt 0:03:47]} a6 {[%emt 0:03:24]} 22. a4 {[%emt 0:03:25]} Nf7 {[%emt 0:01:18]} 23. b5 {[%emt 0:01:03]} axb5 {[%emt 0:00:05]} 24. axb5 {[%emt 0:00:08]} Nde5 {[%emt 0:04:09]} 25. bxc6 {[%emt 0:03:14]} bxc6 {[%emt 0:01:58]} 26. Nd4 {[%emt 0:02:52]} Nd8 {[%emt 0:06:12]} 27. Ncb5 {[%emt 0:06:16]} Rf8 {[%emt 0:10:05]} 28. Rc5 {[%emt 0:06:37]} Nd3 {[%emt 0:02:18]} 29. Rc3 {[%emt 0:05:25]} Ne5 {[%emt 0:00:18]} 30. Nf3 {[%emt 0:00:58]} Nxf3+ {[%emt 0:04:45]} 31. gxf3 {[%emt 0:00:07]} Ra2 {[%emt 0:02:33]} 32. Nd4 {[%emt 0:00:40]} Ra6 {[%emt 0:08:54]} 33. Kg2 {[%emt 0:01:19]} Re8 {[%emt 0:01:29]} 34. Nb5 {[%emt 0:00:41]} Nf7 {[%emt 0:02:38]} 35. Rdc1 {[%emt 0:00:14]} Kb7 {[%emt 0:04:44]} 36. Nd4 {[%emt 0:00:08]} Nd8 {[%emt 0:04:22]} 37. Kg3 {[%emt 0:00:44]} Re5 {[%emt 0:02:34]} 38. h4 {[%emt 0:02:35]} Kc7 {[%emt 0:00:47]} 39. Rb1 {[%emt 0:02:33]} Raa5 {[%emt 0:03:43]} 40. Rbc1 {[%emt 0:00:00]} Ra6 {[%emt 0:00:00]} 41. Rc4 {[%emt 0:03:56]} Kd7 {[%emt 0:04:32]} 42. R1c3 {[%emt 0:01:05]} Rb6 {[%emt 0:04:17]} 43. Nc2 {[%emt 0:00:24]} Ne6 {[%emt 0:02:25]} 44. Nb4 {[%emt 0:00:50]} Rh5 {[%emt 0:02:16]} 45. f4 {[%emt 0:02:59]} Nd8 {[%emt 0:03:50]} 46. e5 {[%emt 0:05:53]} Rf5 {[%emt 0:00:50]} 47. Rd3+ {[%emt 0:00:14]} Ke8 {[%emt 0:02:48]} 48. Rd6 {[%emt 0:00:44]} Rb8 {[%emt 0:00:26]} 49. Nxc6 {[%emt 0:01:20]} Rb3+ {[%emt 0:00:17]} 50. Kg2 {[%emt 0:00:12]} Nxc6 {[%emt 0:05:56]} 51. Rdxc6 {[%emt 0:00:12]} Rh5 {[%emt 0:00:53]} 52. Re6+ {[%emt 0:01:05]} Kd7 {[%emt 0:00:50]} 53. Rd6+ {[%emt 0:00:15]} Ke8 {[%emt 0:00:26]} 54. Rc8+ {[%emt 0:00:20]} Ke7 {[%emt 0:00:04]} 55. Rc7+ {[%emt 0:00:08]} Ke8 {[%emt 0:00:04]} 56. Ra6 {[%emt 0:00:19]} Rb8 {[%emt 0:00:09]} 57. Kg3 {[%emt 0:00:36]} Kf8 {[%emt 0:01:59]} 58. Raa7 {[%emt 0:00:33]} Kg8 {[%emt 0:00:32]} 59. Kg4 {[%emt 0:00:34]} Re8 {[%emt 0:00:19]} 60. Rg7+ {[%emt 0:02:23]} Kh8 {[%emt 0:00:04]} 61. Rgf7 {[%emt 0:01:05]} Kg8 {[%emt 0:00:15]} 62. Rf6 {[%emt 0:00:55]} Rb8 {[%emt 0:01:04]} 63. Raf7 {[%emt 0:01:34]} Re8 {[%emt 0:01:35]} 64. e6 {[%emt 0:00:50]} Ra5 {[%emt 0:01:17]} 65. h5 {[%emt 0:00:53]} gxh5+ {[%emt 0:01:12]} 66. Kh4 {[%emt 0:00:02]} Rxe6 {[%emt 0:00:46]} 67. Rf8+ {[%emt 0:00:11]} Kg7 {[%emt 0:00:04]} 68. R6f7+ {[%emt 0:00:12]} Kh6 {[%emt 0:00:33]} 69. Rh8 {[%emt 0:00:07]} Re4 {[%emt 0:01:28]} 70. Rhxh7+ {[%emt 0:02:16]} Kg6 {[%emt 0:00:05]} 71. Rhg7+ {[%emt 0:00:20]} Kh6 {[%emt 0:00:07]} 72. Rg3 {[%emt 0:02:45]} Rb4 {[%emt 0:05:19]} 73. Kh3 {[%emt 0:04:34]} Rbb5 {[%emt 0:02:28]} 74. Kh4 {[%emt 0:06:34]} Rf5 {[%emt 0:00:35]} 1/2-1/2

[Event "3rd BSSZ-Aranytiz IM 2019"]
[Site "Budapest"]
[Date "2019.08.19"]
[Round "4.4"]
[White "Urhegyi, Marton"]
[Black "Farago, Sandor"]
[Result "1/2-1/2"]
[ECO "B22"]
[WhiteElo "2256"]
[BlackElo "2211"]
[Annotator "NA"]
[PlyCount "65"]
[EventDate "2019.08.16"]
[EventType "tourn"]
[EventCountry "HUN"]
[SourceTitle "playchess.com"]
[Source "ChessBase"]
[SourceQuality "1"]
[TimeControl "40/5400+30:1800+30"]

1. e4 {[%emt 0:05:06]} c5 {[%emt 0:00:08]} 2. c3 {[%emt 0:00:06]} Nf6 {[%emt 0:00:14]} 3. e5 {[%emt 0:00:09]} Nd5 {[%emt 0:00:04]} 4. d4 {[%emt 0:00:05]} cxd4 {[%emt 0:00:07]} 5. Nf3 {[%emt 0:00:04]} e6 {[%emt 0:00:17]} 6. cxd4 {[%emt 0:00:05]} Nc6 {[%emt 0:00:11]} 7. Bc4 {[%emt 0:00:09]} d6 {[%emt 0:00:24]} 8. O-O {[%emt 0:00:26]} Be7 {[%emt 0:00:06]} 9. Qe2 {[%emt 0:05:44]} O-O {[%emt 0:01:08]} 10. Nc3 {[%emt 0:07:11]} dxe5 {[%emt 0:09:45]} 11. dxe5 {[%emt 0:02:42]} Nxc3 {[%emt 0:00:38]} 12. bxc3 {[%emt 0:00:03]} Qc7 {[%emt 0:00:38]} 13. Bd3 {[%emt 0:07:30]} g6 {[%emt 0:09:59]} 14. Bf4 {[%emt 0:21:06]} Bd7 {[%emt 0:09:34]} 15. Nd2 {[%emt 0:05:29]} Rfd8 {[%emt 0:05:41]} 16. Qe3 {[%emt 0:02:47]} Be8 {[%emt 0:04:08]} 17. Bc2 {[%emt 0:12:54]} Rac8 18. Bb3 {[%emt 0:05:42]} Qa5 {[%emt 0:18:33]} 19. Rad1 {[%emt 0:06:49]} b5 {[%emt 0:08:15]} 20. Ne4 {[%emt 0:02:05]} b4 {[%emt 0:00:02]} 21. cxb4 {[%emt 0:01:36]} Qxb4 {[%emt 0:00:14]} 22. Nd6 {[%emt 0:04:41]} Rb8 {[%emt 0:05:43]} 23. Rc1 {[%emt 0:01:42]} Bxd6 {[%emt 0:05:08]} 24. exd6 {[%emt 0:02:25]} e5 {[%emt 0:00:32]} 25. Rxc6 {[%emt 0:04:31]} Bxc6 {[%emt 0:08:02]} 26. Qxe5 {[%emt 0:00:15]} Qe4 {[%emt 0:00:18]} 27. Qxe4 {[%emt 0:00:30]} Bxe4 {[%emt 0:00:01]} 28. Re1 {[%emt 0:01:15]} Bf5 {[%emt 0:01:39]} 29. d7 {[%emt 0:00:50]} Rxb3 {[%emt 0:05:33]} 30. axb3 {[%emt 0:00:20]} Rxd7 {[%emt 0:00:05]} 31. b4 {[%emt 0:00:36]} a6 {[%emt 0:01:29]} 32. Be3 {[%emt 0:00:32]} Kg7 {[%emt 0:00:29]} 33. h3 {[%emt 0:00:26]} 1/2-1/2

[Event "3rd BSSZ-Aranytiz IM 2019"]
[Site "Budapest"]
[Date "2019.08.19"]
[Round "4.5"]
[White "Hamblok, Roel"]
[Black "Persanyi, Barnabas"]
[Result "1/2-1/2"]
[ECO "A47"]
[WhiteElo "2261"]
[BlackElo "2399"]
[Annotator "NA"]
[PlyCount "131"]
[EventDate "2019.08.16"]
[EventType "tourn"]
[EventCountry "HUN"]
[SourceTitle "playchess.com"]
[Source "ChessBase"]
[SourceQuality "1"]
[TimeControl "40/5400+30:1800+30"]

1. d4 {[%emt 0:00:05]} Nf6 {[%emt 0:00:28]} 2. Nf3 {[%emt 0:00:07]} b6 {[%emt 0:00:18]} 3. g3 {[%emt 0:00:45]} Bb7 {[%emt 0:00:24]} 4. Bg2 {[%emt 0:00:06]} g6 {[%emt 0:00:46]} 5. O-O {[%emt 0:00:12]} Bg7 {[%emt 0:00:25]} 6. c4 {[%emt 0:00:06]} O-O {[%emt 0:00:58]} 7. Nc3 {[%emt 0:00:08]} Ne4 {[%emt 0:00:49]} 8. Nxe4 {[%emt 0:00:08]} Bxe4 {[%emt 0:00:09]} 9. Be3 {[%emt 0:00:05]} d6 {[%emt 0:01:40]} 10. Qd2 {[%emt 0:00:17]} c5 {[%emt 0:01:08]} 11. Bh6 {[%emt 0:12:07]} Nd7 {[%emt 0:03:09]} 12. Bxg7 {[%emt 0:05:45]} Kxg7 {[%emt 0:00:17]} 13. b3 {[%emt 0:00:45]} Nf6 {[%emt 0:05:31]} 14. Rad1 {[%emt 0:06:51]} Qc7 {[%emt 0:05:42]} 15. Rfe1 {[%emt 0:08:11]} Rfd8 {[%emt 0:12:36]} 16. d5 {[%emt 0:04:07]} Bxf3 {[%emt 0:05:03]} 17. exf3 {[%emt 0:03:39]} b5 {[%emt 0:09:25]} 18. cxb5 {[%emt 0:07:59]} a6 {[%emt 0:01:43]} 19. Bf1 {[%emt 0:00:30]} axb5 {[%emt 0:01:27]} 20. Bxb5 {[%emt 0:00:09]} Qa5 {[%emt 0:01:26]} 21. a4 {[%emt 0:04:33]} Qxd2 {[%emt 0:00:37]} 22. Rxd2 {[%emt 0:00:02]} Kf8 {[%emt 0:00:45]} 23. Re3 {[%emt 0:02:07]} Rdb8 {[%emt 0:03:41]} 24. Kf1 {[%emt 0:01:48]} Ne8 {[%emt 0:02:04]} 25. Rde2 {[%emt 0:04:59]} Ra7 {[%emt 0:01:02]} 26. Bc4 {[%emt 0:03:24]} Ng7 {[%emt 0:18:57]} 27. g4 {[%emt 0:00:54]} e5 {[%emt 0:02:17]} 28. dxe6 {[%emt 0:10:30]} Nxe6 {[%emt 0:00:28]} 29. Bxe6 {[%emt 0:00:13]} fxe6 {[%emt 0:00:06]} 30. Rxe6 {[%emt 0:00:09]} Rxb3 {[%emt 0:00:42]} 31. Rxd6 {[%emt 0:10:07]} Rxf3 {[%emt 0:01:58]} 32. Re4 {[%emt 0:01:18]} Ra3 {[%emt 0:01:11]} 33. Rf6+ {[%emt 0:01:58]} Kg7 {[%emt 0:01:42]} 34. Rff4 {[%emt 0:00:11]} g5 {[%emt 0:01:05]} 35. Rf5 {[%emt 0:00:16]} h6 {[%emt 0:00:18]} 36. Rxc5 {[%emt 0:00:32]} R3xa4 {[%emt 0:00:19]} 37. Rxa4 {[%emt 0:00:39]} Rxa4 {[%emt 0:00:06]} 38. h3 {[%emt 0:00:06]} Kg6 {[%emt 0:05:29]} 39. Rc6+ {[%emt 0:01:15]} Kg7 {[%emt 0:00:05]} 40. Kg2 {[%emt 0:00:00]} Rb4 {[%emt 0:00:00]} 41. Kg3 {[%emt 0:02:09]} Rb3+ {[%emt 0:06:05]} 42. f3 {[%emt 0:00:48]} Ra3 {[%emt 0:01:04]} 43. Rc5 {[%emt 0:00:46]} Kg6 {[%emt 0:02:07]} 44. Rb5 {[%emt 0:01:20]} Rc3 {[%emt 0:01:29]} 45. Rb6+ {[%emt 0:02:09]} Kg7 {[%emt 0:00:20]} 46. Rb2 {[%emt 0:00:44]} Kg6 {[%emt 0:01:23]} 47. Rb8 {[%emt 0:01:34]} Ra3 {[%emt 0:08:10]} 48. Rf8 {[%emt 0:00:27]} Kg7 {[%emt 0:00:34]} 49. Rf5 {[%emt 0:00:14]} Kg6 {[%emt 0:00:11]} 50. h4 {[%emt 0:01:03]} gxh4+ {[%emt 0:03:38]} 51. Kxh4 {[%emt 0:00:02]} h5 {[%emt 0:03:03]} 52. Rf4 {[%emt 0:02:57]} hxg4 {[%emt 0:00:18]} 53. Kxg4 {[%emt 0:00:03]} Ra6 {[%emt 0:01:10]} 54. Rb4 {[%emt 0:00:07]} Kf6 {[%emt 0:00:19]} 55. f4 {[%emt 0:00:02]} Kg6 {[%emt 0:01:16]} 56. Rb5 {[%emt 0:00:18]} Kf6 {[%emt 0:00:43]} 57. Rh5 {[%emt 0:00:13]} Kg6 {[%emt 0:00:26]} 58. f5+ {[%emt 0:00:07]} Kf7 {[%emt 0:00:21]} 59. Kg5 {[%emt 0:00:16]} Rb6 {[%emt 0:00:12]} 60. Rh7+ {[%emt 0:00:09]} Kf8 {[%emt 0:00:06]} 61. Ra7 {[%emt 0:00:19]} Rc6 {[%emt 0:00:33]} 62. Ra8+ {[%emt 0:00:11]} Kf7 {[%emt 0:00:07]} 63. Ra7+ {[%emt 0:00:07]} Kf8 {[%emt 0:00:05]} 64. Ra8+ {[%emt 0:00:31]} Kf7 {[%emt 0:00:05]} 65. Ra7+ {[%emt 0:00:04]} Kf8 {[%emt 0:00:04]} 66. Ra8+ {[%emt 0:00:07]} 1/2-1/2

[Event "3rd BSSZ-Aranytiz IM 2019"]
[Site "Budapest"]
[Date "2019.08.21"]
[Round "5.1"]
[White "Persanyi, Barnabas"]
[Black "Juhasz, Barbara"]
[Result "1-0"]
[ECO "A49"]
[WhiteElo "2399"]
[BlackElo "2157"]
[Annotator "NA"]
[PlyCount "83"]
[EventDate "2019.08.16"]
[EventType "tourn"]
[EventCountry "HUN"]
[SourceTitle "playchess.com"]
[Source "ChessBase"]
[SourceQuality "1"]
[TimeControl "40/5400+30:1800+30"]

1. d4 {[%emt 0:00:13]} Nf6 {[%emt 0:00:09]} 2. Nf3 {[%emt 0:00:20]} g6 {[%emt 0:00:08]} 3. g3 {[%emt 0:00:42]} Bg7 {[%emt 0:00:07]} 4. Bg2 {[%emt 0:00:24]} O-O {[%emt 0:00:08]} 5. O-O {[%emt 0:00:41]} d6 {[%emt 0:00:06]} 6. a4 {[%emt 0:00:33]} c6 {[%emt 0:02:15]} 7. Re1 {[%emt 0:03:58]} Qc7 {[%emt 0:00:22]} 8. e4 {[%emt 0:01:29]} e5 {[%emt 0:00:05]} 9. Nc3 {[%emt 0:01:33]} Nbd7 {[%emt 0:02:02]} 10. h3 {[%emt 0:04:45]} Rb8 {[%emt 0:14:41]} 11. Be3 {[%emt 0:05:24]} b6 {[%emt 0:03:07]} 12. Qd2 {[%emt 0:04:54]} a6 {[%emt 0:07:27]} 13. Bh6 {[%emt 0:23:03]} b5 {[%emt 0:06:47]} 14. Bxg7 {[%emt 0:01:00]} Kxg7 {[%emt 0:00:05]} 15. dxe5 {[%emt 0:05:10]} dxe5 {[%emt 0:03:56]} 16. Qe3 {[%emt 0:03:36]} b4 {[%emt 0:10:27]} 17. Nb1 {[%emt 0:06:48]} a5 {[%emt 0:04:56]} 18. Nbd2 {[%emt 0:02:00]} c5 {[%emt 0:07:03]} 19. Bf1 {[%emt 0:04:50]} Nb6 {[%emt 0:00:31]} 20. c3 {[%emt 0:09:11]} Bd7 {[%emt 0:04:23]} 21. b3 {[%emt 0:00:28]} c4 {[%emt 0:08:13]} 22. Rac1 {[%emt 0:01:58]} cxb3 {[%emt 0:03:23]} 23. cxb4 {[%emt 0:00:31]} Qd6 {[%emt 0:03:00]} 24. Nxb3 {[%emt 0:04:01]} Qxb4 {[%emt 0:05:21]} 25. Nc5 {[%emt 0:00:43]} Nxa4 {[%emt 0:00:51]} 26. Rc4 {[%emt 0:01:11]} Qxc4 {[%emt 0:03:10]} 27. Bxc4 {[%emt 0:00:10]} Nxc5 {[%emt 0:00:04]} 28. Qxc5 {[%emt 0:00:14]} Rbc8 {[%emt 0:00:30]} 29. Qxa5 {[%emt 0:01:38]} Rxc4 {[%emt 0:00:06]} 30. Nxe5 {[%emt 0:00:25]} Rcc8 {[%emt 0:01:01]} 31. g4 {[%emt 0:02:40]} h6 {[%emt 0:02:22]} 32. Nxd7 {[%emt 0:03:19]} Nxd7 {[%emt 0:00:05]} 33. e5 {[%emt 0:00:14]} Nc5 {[%emt 0:03:15]} 34. f4 {[%emt 0:01:28]} Nd3 {[%emt 0:00:25]} 35. Rf1 {[%emt 0:00:30]} Rfe8 {[%emt 0:01:52]} 36. Qa6 {[%emt 0:03:18]} Rcd8 {[%emt 0:01:46]} 37. Qf6+ {[%emt 0:00:23]} Kg8 {[%emt 0:00:02]} 38. e6 {[%emt 0:00:21]} fxe6 {[%emt 0:01:11]} 39. Qxg6+ {[%emt 0:00:08]} Kh8 {[%emt 0:00:03]} 40. Qxh6+ {[%emt 0:00:00]} Kg8 {[%emt 0:00:00]} 41. Qg6+ {[%emt 0:01:26]} Kh8 {[%emt 0:01:42]} 42. Rd1 {[%emt 0:00:57]} 1-0

[Event "3rd BSSZ-Aranytiz IM 2019"]
[Site "Budapest"]
[Date "2019.08.21"]
[Round "5.2"]
[White "Farago, Sandor"]
[Black "Hamblok, Roel"]
[Result "0-1"]
[ECO "C11"]
[WhiteElo "2211"]
[BlackElo "2261"]
[Annotator "NA"]
[PlyCount "62"]
[EventDate "2019.08.16"]
[EventType "tourn"]
[EventCountry "HUN"]
[SourceTitle "playchess.com"]
[Source "ChessBase"]
[SourceQuality "1"]
[TimeControl "40/5400+30:1800+30"]

1. e4 {[%emt 0:00:04]} e6 {[%emt 0:00:06]} 2. d4 {[%emt 0:00:09]} d5 {[%emt 0:00:04]} 3. Nc3 {[%emt 0:00:07]} Nf6 {[%emt 0:00:06]} 4. e5 {[%emt 0:00:08]} Nfd7 {[%emt 0:00:04]} 5. f4 {[%emt 0:00:07]} c5 {[%emt 0:00:05]} 6. Nf3 {[%emt 0:00:05]} Be7 {[%emt 0:00:05]} 7. Be3 {[%emt 0:01:31]} O-O {[%emt 0:00:26]} 8. Qd2 {[%emt 0:03:24]} b6 {[%emt 0:01:15]} 9. a3 {[%emt 0:08:33]} Nc6 {[%emt 0:04:56]} 10. Be2 {[%emt 0:08:58]} Bb7 {[%emt 0:03:47]} 11. O-O {[%emt 0:07:01]} Rc8 {[%emt 0:01:56]} 12. Kh1 {[%emt 0:07:21]} f6 {[%emt 0:18:00]} 13. exf6 {[%emt 0:05:04]} Nxf6 {[%emt 0:02:46]} 14. Rad1 {[%emt 0:04:24]} Bd6 {[%emt 0:07:42]} 15. Ne5 {[%emt 0:19:41]} Nxd4 {[%emt 0:05:10]} 16. Bxd4 {[%emt 0:00:57]} cxd4 {[%emt 0:00:06]} 17. Qxd4 {[%emt 0:00:12]} Qe7 {[%emt 0:07:43]} 18. b4 {[%emt 0:03:28]} a5 {[%emt 0:06:43]} 19. Nb5 {[%emt 0:00:15]} axb4 {[%emt 0:08:28]} 20. Nxd6 {[%emt 0:05:20]} Qxd6 {[%emt 0:00:35]} 21. Nc4 {[%emt 0:08:22]} Qc5 {[%emt 0:16:32]} 22. Nxb6 {[%emt 0:00:03]} Qxd4 {[%emt 0:00:09]} 23. Rxd4 {[%emt 0:00:07]} Rxc2 {[%emt 0:00:05]} 24. Bd3 {[%emt 0:00:10]} Rc3 {[%emt 0:00:15]} 25. Na4 {[%emt 0:12:54]} Rxd3 {[%emt 0:02:23]} 26. Rxd3 {[%emt 0:00:01]} Ba6 {[%emt 0:00:06]} 27. Rff3 {[%emt 0:00:31]} Bxd3 {[%emt 0:00:08]} 28. Rxd3 {[%emt 0:00:23]} Ra8 {[%emt 0:00:33]} 29. Nc5 {[%emt 0:01:29]} bxa3 {[%emt 0:00:35]} 30. Rd1 {[%emt 0:00:13]} a2 {[%emt 0:00:36]} 31. Ra1 {[%emt 0:00:06]} Rb8 {[%emt 0:00:37]} 0-1